[Event "FIDE WCCC G10 2018"]
[Site "Santiago de Compostela"]
[Date "2018.11.13"]
[Round "9"]
[White "Zhou, Yafei"]
[Black "Edithso, Samantha"]
[Result "1-0"]
[ECO "D96"]
[WhiteElo "1648"]
[BlackElo "1879"]
[Annotator "NA RC"]
[PlyCount "77"]
[EventDate "2018.11.04"]
[EventType "swiss"]
[EventCountry "ESP"]
[SourceTitle "playchess.com"]
[Source "ChessBase"]
[SourceQuality "1"]
[TimeControl "40/5400+30:1800+30"]

{[%evp 10,77,47,32767,32767,32767,32767,32767,47,32767,32767,20,27,47,74,74,97,76,110,107,110,43,63,21,21,10,21,23,18,7,4,0,37,31,35,26,27,32767,32767,32767,32767,32767,6,3,51,51,53,49,52,45,175,238,217,237,419,425,439,475,32767,767,905,1032,967,1254,32767,32767,32767,32767,32767,1488]} 1. d4 {[%emt 0:00:00]} Nf6 {[%emt 0:00:00]} 2. Nf3 {[%emt 0:00:00]} d5 {[%emt 0:00:43]} 3. c4 {[%emt 0:00:00]} c6 {[%emt 0:00:07]} 4. Nc3 {[%emt 0:00:03]} g6 {[%emt 0:00:13]} 5. e3 {[%emt 0:01:56]} Bg7 {[%emt 0:01:15]} 6. Bd3 {[%emt 0:00:02]} O-O {[%emt 0:00:16]} 7. O-O {[%emt 0:00:03]} dxc4 {[%emt 0:03:12]} 8. Bxc4 {[%emt 0:00:27]} Nbd7 {[%emt 0:01:58]} 9. e4 {[%emt 0:05:45] D94: Grünfeld: 4 Nf3 Bg7 5 e3} (9. Bb3 Nb6 10. h3 Bf5 11. Nh4 Be4 12. Nxe4 Nxe4 13. Qc2 Nd6 14. Nf3 Rc8 15. Rd1 c5 16. dxc5 Nd7 {0-1 (36) Babula,V (2556)-Plat,V (2556) Prague 2018}) 9... Nb6 {[%emt 0:00:55]} 10. Bb3 {[%emt 0:00:59]} Bg4 {[%emt 0:01:05]} 11. Be3 {[%emt 0:00:57] LiveBook: 9 Games} e6 {[%emt 0:02:18]} 12. h3 {[%emt 0:01:05]} Bxf3 {[%emt 0:00:10]} 13. Qxf3 {[%emt 0:00:04]} h6 $146 {[%emt 0:01:13]} ({Predecessor:} 13... Ne8 14. Rad1 Qc7 15. d5 cxd5 16. exd5 Nxd5 17. Nxd5 exd5 {1-0 (58) Colle,E-Patay von Bay,G Merano 1924}) 14. Rfd1 {[%emt 0:04:41]} Qe7 {[%emt 0:04:00]} 15. e5 {[%emt 0:00:59]} ({White should try} 15. Rac1 $16) 15... Nfd5 {[%emt 0:02:30]} 16. Nxd5 {[%emt 0:04:21]} cxd5 {[%emt 0:02:25]} 17. Qe2 {[%emt 0:01:02]} Rfc8 {[%emt 0:02:32]} 18. Rac1 {[%emt 0:00:21]} Qb4 {[%emt 0:00:48]} 19. Qd2 {[%emt 0:08:10]} Qxd2 {[%emt 0:01:25]} 20. Bxd2 {[%emt 0:00:05]} Rxc1 {[%emt 0:01:11]} 21. Rxc1 {[%emt 0:00:08]} Rc8 {[%emt 0:00:21]} 22. Rxc8+ {[%emt 0:00:56]} Nxc8 {[%emt 0:00:04]} 23. Kf1 {[%emt 0:00:02]} Ne7 {[%emt 0:00:11]} 24. Ke2 {[%emt 0:00:17]} f6 {[%emt 0:01:36]} 25. f4 {[%emt 0:01:55]} Nf5 {[%emt 0:03:10]} 26. Kd3 {[%emt 0:01:17]} fxe5 {[%emt 0:00:58]} 27. fxe5 {[%emt 0:01:11]} g5 {[%emt 0:02:03]} 28. Be1 {[%emt 0:01:40]} Bf8 {[%emt 0:03:50]} 29. Ba4 {[%emt 0:03:09]} a6 {[%emt 0:01:07] [#]} (29... Kf7 $14) 30. Bd7 $1 {[%emt 0:00:45]} Kf7 {[%emt 0:01:18]} 31. Bc8 {[%emt 0:00:51]} b5 $2 {[%emt 0:03:02]} (31... b6 32. Bxa6 Be7) 32. Bxa6 {[%emt 0:02:05]} b4 {[%emt 0:00:05]} 33. g4 {[%emt 0:15:47]} b3 {[%emt 0:10:22]} 34. axb3 {[%emt 0:01:19]} Ne7 {[%emt 0:00:11]} 35. b4 {[%emt 0:12:47]} Nc6 {[%emt 0:05:53]} 36. b5 {[%emt 0:01:00]} Nb4+ {[%emt 0:06:01]} 37. Kc3 {[%emt 0:05:51]} Na2+ {[%emt 0:03:17]} 38. Kc2 {[%emt 0:03:19]} Ke8 {[%emt 0:01:35]} 39. Bc8 $18 {[%emt 0:01:07]} 1-0

[Event "FIDE WCCC G10 2018"]
[Site "Santiago de Compostela"]
[Date "2018.11.13"]
[Round "9"]
[White "Vlasova, Olesia"]
[Black "Wu, Abbie"]
[Result "1-0"]
[ECO "B31"]
[WhiteElo "1639"]
[BlackElo "1446"]
[Annotator "NA RC"]
[PlyCount "103"]
[EventDate "2018.11.04"]
[EventType "swiss"]
[EventCountry "ESP"]
[SourceTitle "playchess.com"]
[Source "ChessBase"]
[SourceQuality "1"]
[TimeControl "40/5400+30:1800+30"]

1. e4 {[%emt 0:00:00]} c5 {[%emt 0:00:00]} 2. Nf3 {[%emt 0:00:00]} Nc6 {[%emt 0:00:00]} 3. Bb5 {[%emt 0:00:00]} g6 {[%emt 0:00:00]} 4. O-O {[%emt 0:00:00]} Bg7 {[%emt 0:00:00]} 5. c3 {[%emt 0:00:15]} Nf6 {[%emt 0:00:04]} 6. Qe2 {[%emt 0:01:59]} O-O {[%emt 0:04:06]} 7. d4 {[%emt 0:04:15]} cxd4 {[%emt 0:01:52]} 8. cxd4 {[%emt 0:00:11]} d5 {[%emt 0:01:50]} 9. e5 {[%emt 0:01:45]} Ne4 {[%emt 0:01:00]} 10. Nc3 {[%emt 0:03:02]} Nxc3 {[%emt 0:01:17]} 11. bxc3 {[%emt 0:00:18]} Bf5 {[%emt 0:03:14]} 12. Ba3 {[%emt 0:04:23]} Na5 {[%emt 0:03:41]} 13. Nd2 {[%emt 0:13:29]} Rc8 {[%emt 0:05:04]} 14. Rac1 {[%emt 0:01:26]} a6 {[%emt 0:03:01]} 15. Bd3 {[%emt 0:01:17]} Bxd3 {[%emt 0:00:16]} 16. Qxd3 {[%emt 0:00:13]} b5 {[%emt 0:01:11]} 17. Bc5 {[%emt 0:02:54]} Bxe5 {[%emt 0:03:32]} 18. a4 {[%emt 0:20:06]} Bf4 {[%emt 0:03:39]} 19. Rb1 {[%emt 0:01:38]} Bxd2 {[%emt 0:05:28]} 20. Qxd2 {[%emt 0:00:16]} Nc4 {[%emt 0:00:05]} 21. Qe2 {[%emt 0:02:09]} bxa4 {[%emt 0:05:13]} 22. Rb7 {[%emt 0:17:55]} Re8 {[%emt 0:04:03]} 23. Qg4 {[%emt 0:07:31]} Rc7 {[%emt 0:06:45]} 24. Rb4 {[%emt 0:01:23]} a3 {[%emt 0:00:22]} 25. Ra4 {[%emt 0:01:04]} a5 {[%emt 0:01:32]} 26. Bxa3 {[%emt 0:00:50]} f5 {[%emt 0:00:53]} 27. Qd1 {[%emt 0:01:26]} Rb7 {[%emt 0:05:25]} 28. Bc1 {[%emt 0:00:55]} Qd7 {[%emt 0:00:51]} 29. Ra1 {[%emt 0:00:39]} Qc7 {[%emt 0:03:07]} 30. Qf3 {[%emt 0:01:06]} Rb5 {[%emt 0:01:35]} 31. Bf4 {[%emt 0:00:40]} Qb7 {[%emt 0:00:31]} 32. Qe2 {[%emt 0:01:21]} e6 {[%emt 0:00:27]} 33. h4 {[%emt 0:03:37]} Rb2 {[%emt 0:01:28]} 34. Qd3 {[%emt 0:00:32]} Qb5 {[%emt 0:03:20]} 35. Rfe1 {[%emt 0:02:14]} a4 {[%emt 0:00:28]} 36. Qd1 {[%emt 0:00:55]} a3 {[%emt 0:00:15]} 37. Bc1 {[%emt 0:03:04]} Rb3 {[%emt 0:00:31]} 38. Qc2 {[%emt 0:02:06]} Kf7 {[%emt 0:01:36]} 39. Bg5 {[%emt 0:01:11]} Rb8 {[%emt 0:00:30]} 40. Qe2 {[%emt 0:00:00]} Rb6 {[%emt 0:00:00]} 41. h5 {[%emt 0:06:46]} Rb2 {[%emt 0:01:33]} 42. Qf3 {[%emt 0:00:41]} a2 {[%emt 0:00:16]} 43. hxg6+ {[%emt 0:01:50]} Kxg6 {[%emt 0:23:44]} 44. Bc1 {[%emt 0:11:11]} Rb1 {[%emt 0:01:11]} 45. Rxa2 {[%emt 0:01:44]} Rb7 {[%emt 0:02:44]} 46. Rxe6+ {[%emt 0:01:19]} Kg7 {[%emt 0:00:09]} 47. Re1 {[%emt 0:00:42]} Kf6 {[%emt 0:02:56]} 48. Rae2 {[%emt 0:01:01]} Rb6 {[%emt 0:00:35]} 49. Qh5 {[%emt 0:00:48]} Rxc1 {[%emt 0:01:11]} 50. Qh6+ {[%emt 0:00:17]} Kf7 {[%emt 0:00:05]} 51. Re7+ {[%emt 0:00:12]} Kg8 {[%emt 0:00:08]} 52. Qg7# {[%emt 0:00:04]} 1-0

[Event "FIDE WCCC G10 2018"]
[Site "Santiago de Compostela"]
[Date "2018.11.13"]
[Round "9"]
[White "Anupam M Sreekumar"]
[Black "Wen, Kally"]
[Result "0-1"]
[ECO "C45"]
[WhiteElo "1615"]
[BlackElo "1195"]
[Annotator "NA RC"]
[PlyCount "114"]
[EventDate "2018.11.04"]
[EventType "swiss"]
[EventCountry "ESP"]
[SourceTitle "playchess.com"]
[Source "ChessBase"]
[SourceQuality "1"]
[TimeControl "40/5400+30:1800+30"]

1. e4 {[%emt 0:00:05]} e5 {[%emt 0:00:00]} 2. Nf3 {[%emt 0:00:13]} Nc6 {[%emt 0:00:01]} 3. d4 {[%emt 0:00:12]} exd4 {[%emt 0:00:15]} 4. Nxd4 {[%emt 0:00:15]} Bc5 {[%emt 0:00:20]} 5. Be3 {[%emt 0:00:18]} Qf6 {[%emt 0:00:27]} 6. c3 {[%emt 0:00:14]} Nge7 {[%emt 0:00:13]} 7. Bc4 {[%emt 0:00:12]} Ne5 {[%emt 0:00:15]} 8. Be2 {[%emt 0:00:13]} d6 {[%emt 0:00:18]} 9. O-O {[%emt 0:00:14]} Qg6 {[%emt 0:00:12]} 10. Kh1 {[%emt 0:00:26]} Qxe4 {[%emt 0:01:24]} 11. Nd2 {[%emt 0:00:32]} Qg6 {[%emt 0:00:30]} 12. Nb5 {[%emt 0:00:52]} O-O {[%emt 0:04:08]} 13. Nxc7 {[%emt 0:04:58]} Rb8 {[%emt 0:05:43]} 14. Nb3 {[%emt 0:10:11]} Bxe3 {[%emt 0:06:03]} 15. fxe3 {[%emt 0:01:32]} Nf5 {[%emt 0:02:22]} 16. Nd5 {[%emt 0:02:06]} Kh8 {[%emt 0:07:52]} 17. e4 {[%emt 0:06:44]} Nh4 {[%emt 0:04:39]} 18. Nf4 {[%emt 0:01:38]} Qxe4 {[%emt 0:06:17]} 19. Nd2 {[%emt 0:19:46]} Qc6 {[%emt 0:03:53]} 20. Qe1 {[%emt 0:04:13]} Nhg6 {[%emt 0:04:01]} 21. Nxg6+ {[%emt 0:02:03]} Nxg6 {[%emt 0:01:21]} 22. Bh5 {[%emt 0:02:55]} Ne5 {[%emt 0:06:33]} 23. Ne4 {[%emt 0:04:37]} f6 {[%emt 0:03:35]} 24. Qh4 {[%emt 0:04:41]} d5 {[%emt 0:04:53]} 25. Ng5 {[%emt 0:02:29]} h6 {[%emt 0:05:27]} 26. Nf3 {[%emt 0:04:36]} Nxf3 {[%emt 0:02:21]} 27. Rxf3 {[%emt 0:00:50]} Be6 {[%emt 0:03:28]} 28. Bg6 {[%emt 0:01:44]} Bf7 {[%emt 0:01:53]} 29. Bd3 {[%emt 0:00:38]} Rbe8 {[%emt 0:04:23]} 30. Raf1 {[%emt 0:00:49]} Bg8 {[%emt 0:02:30]} 31. Qf4 {[%emt 0:03:11]} Bh7 {[%emt 0:01:15]} 32. Bxh7 {[%emt 0:03:21]} Kxh7 {[%emt 0:00:07]} 33. Qf5+ {[%emt 0:00:21]} Kg8 {[%emt 0:01:36]} 34. Qg6 {[%emt 0:01:48]} f5 {[%emt 0:01:53]} 35. Qh5 {[%emt 0:02:33]} Qe6 {[%emt 0:03:00]} 36. h3 {[%emt 0:02:32]} Qe2 {[%emt 0:01:21]} 37. Qg6 {[%emt 0:04:33]} Re6 {[%emt 0:03:17]} 38. Qg3 {[%emt 0:00:30]} Ref6 {[%emt 0:01:01]} 39. Qc7 {[%emt 0:03:47]} Qxb2 {[%emt 0:01:42]} 40. Qd7 {[%emt 0:00:00]} Qxa2 {[%emt 0:00:00]} 41. Qxb7 {[%emt 0:03:15]} R6f7 {[%emt 0:06:08]} 42. Qc6 {[%emt 0:03:51]} a5 {[%emt 0:02:48]} 43. Qc5 {[%emt 0:01:31]} a4 {[%emt 0:01:52]} 44. Rf4 {[%emt 0:02:24]} Ra8 {[%emt 0:03:23]} 45. Kh2 {[%emt 0:01:30]} Qb3 {[%emt 0:07:38]} 46. Qc6 {[%emt 0:03:32]} Qb7 {[%emt 0:03:06]} 47. Qe6 {[%emt 0:03:16]} Qd7 {[%emt 0:01:21]} 48. Qe5 {[%emt 0:01:06]} a3 {[%emt 0:01:17]} 49. Rd1 {[%emt 0:04:30]} a2 {[%emt 0:01:59]} 50. c4 {[%emt 0:00:41]} Qc7 {[%emt 0:00:46]} 51. Qd4 {[%emt 0:04:07]} g5 {[%emt 0:01:15]} 52. g3 {[%emt 0:00:23]} gxf4 {[%emt 0:01:52]} 53. gxf4 {[%emt 0:00:10]} a1=Q {[%emt 0:02:53]} 54. Rxa1 {[%emt 0:00:16]} Rxa1 {[%emt 0:00:23]} 55. Qxa1 {[%emt 0:00:02]} Qxf4+ {[%emt 0:00:22]} 56. Kh1 {[%emt 0:00:01]} Qf3+ {[%emt 0:00:47]} 57. Kh2 {[%emt 0:00:09]} Rg7 {[%emt 0:00:29]} 0-1

[Event "FIDE WCCC G10 2018"]
[Site "Santiago de Compostela"]
[Date "2018.11.13"]
[Round "9"]
[White "Szczotka, Klara"]
[Black "Elangovan, Ramya"]
[Result "1-0"]
[ECO "B44"]
[WhiteElo "1581"]
[BlackElo "1352"]
[Annotator "NA RC"]
[PlyCount "155"]
[EventDate "2018.11.04"]
[EventType "swiss"]
[EventCountry "ESP"]
[SourceTitle "playchess.com"]
[Source "ChessBase"]
[SourceQuality "1"]
[TimeControl "40/5400+30:1800+30"]

1. e4 {[%emt 0:00:00]} c5 {[%emt 0:00:00]} 2. Nf3 {[%emt 0:00:00]} e6 {[%emt 0:00:00]} 3. d4 {[%emt 0:00:00]} cxd4 {[%emt 0:00:00]} 4. Nxd4 {[%emt 0:00:00]} Nc6 {[%emt 0:00:00]} 5. Nb5 {[%emt 0:00:15]} d6 {[%emt 0:00:00]} 6. c4 {[%emt 0:00:10]} a6 {[%emt 0:00:11]} 7. N5c3 {[%emt 0:00:09]} Nf6 {[%emt 0:00:29]} 8. Na3 {[%emt 0:01:25]} Be7 {[%emt 0:01:44]} 9. Nc2 {[%emt 0:00:20]} Qc7 {[%emt 0:01:50]} 10. Be3 {[%emt 0:02:30]} Ne5 {[%emt 0:02:41]} 11. Qe2 {[%emt 0:09:44]} b6 {[%emt 0:02:41]} 12. f4 {[%emt 0:06:57]} Ned7 {[%emt 0:00:32]} 13. Bd2 {[%emt 0:06:10]} Bb7 {[%emt 0:06:38]} 14. g3 {[%emt 0:11:20]} Rc8 {[%emt 0:02:20]} 15. Rc1 {[%emt 0:12:30]} Nc5 {[%emt 0:04:03]} 16. Bg2 {[%emt 0:02:08]} Ncd7 {[%emt 0:05:22]} 17. b3 {[%emt 0:01:02]} h6 {[%emt 0:09:11]} 18. O-O {[%emt 0:06:35]} O-O {[%emt 0:01:07]} 19. h3 {[%emt 0:00:54]} Rcd8 {[%emt 0:06:39]} 20. Kh2 {[%emt 0:03:25]} Nc5 {[%emt 0:07:44]} 21. Rcd1 {[%emt 0:13:13]} Rd7 {[%emt 0:05:12]} 22. b4 {[%emt 0:04:39]} Ncxe4 {[%emt 0:04:15]} 23. Nxe4 {[%emt 0:00:31]} Nxe4 {[%emt 0:00:26]} 24. Bxe4 {[%emt 0:00:06]} Bxe4 {[%emt 0:00:08]} 25. Qxe4 {[%emt 0:00:07]} d5 {[%emt 0:00:13]} 26. cxd5 {[%emt 0:03:59]} Rxd5 {[%emt 0:01:20]} 27. Ne3 {[%emt 0:02:07]} Rd7 {[%emt 0:01:58]} 28. Qf3 {[%emt 0:02:51]} Rfd8 {[%emt 0:03:06]} 29. Qe2 {[%emt 0:00:41]} Rd3 {[%emt 0:04:07]} 30. Bc1 {[%emt 0:06:28]} Rxd1 {[%emt 0:02:09]} 31. Rxd1 {[%emt 0:00:10]} Rxd1 {[%emt 0:00:10]} 32. Qxd1 {[%emt 0:00:06]} Bxb4 {[%emt 0:00:20]} 33. Bb2 {[%emt 0:00:24]} Bc5 {[%emt 0:00:52]} 34. Ng4 {[%emt 0:01:25]} b5 {[%emt 0:03:25]} 35. Qd3 {[%emt 0:01:03]} Bb4 {[%emt 0:04:17]} 36. h4 {[%emt 0:02:06]} Qc5 {[%emt 0:02:26]} 37. a3 {[%emt 0:00:40]} Ba5 {[%emt 0:00:41]} 38. Qd4 {[%emt 0:00:59]} Qxd4 {[%emt 0:01:35]} 39. Bxd4 {[%emt 0:00:05]} b4 {[%emt 0:00:04]} 40. axb4 {[%emt 0:00:00]} Bxb4 {[%emt 0:00:00]} 41. Kg2 {[%emt 0:00:57]} f6 {[%emt 0:00:28]} 42. Kf3 {[%emt 0:00:18]} Kf7 {[%emt 0:00:07]} 43. Nf2 {[%emt 0:00:21]} Ke7 {[%emt 0:00:41]} 44. Nd3 {[%emt 0:00:21]} a5 {[%emt 0:00:40]} 45. Nxb4 {[%emt 0:00:13]} axb4 {[%emt 0:00:04]} 46. Bc5+ {[%emt 0:00:07]} Kd7 {[%emt 0:00:08]} 47. Bxb4 {[%emt 0:00:04]} e5 {[%emt 0:00:04]} 48. fxe5 {[%emt 0:00:08]} fxe5 {[%emt 0:00:05]} 49. Bf8 {[%emt 0:00:08]} g5 {[%emt 0:00:18]} 50. h5 {[%emt 0:00:23]} Ke6 {[%emt 0:00:05]} 51. Ke4 {[%emt 0:00:24]} Kf6 {[%emt 0:00:11]} 52. Bxh6 {[%emt 0:00:16]} g4 {[%emt 0:00:11]} 53. Bd2 {[%emt 0:00:23]} Ke6 {[%emt 0:00:08]} 54. h6 {[%emt 0:00:17]} Kf6 {[%emt 0:00:11]} 55. Kd5 {[%emt 0:00:21]} e4 {[%emt 0:00:11]} 56. Kxe4 {[%emt 0:00:06]} Kg6 {[%emt 0:00:07]} 57. Ke5 {[%emt 0:00:11]} Kh7 {[%emt 0:00:06]} 58. Kf5 {[%emt 0:00:06]} Kh8 {[%emt 0:00:06]} 59. Bc3+ {[%emt 0:00:16]} Kh7 {[%emt 0:00:07]} 60. Kg5 {[%emt 0:00:06]} Kg8 {[%emt 0:00:04]} 61. Kg6 {[%emt 0:01:25]} Kf8 {[%emt 0:00:19]} 62. h7 {[%emt 0:00:05]} Ke7 {[%emt 0:00:03]} 63. h8=Q {[%emt 0:00:07]} Ke6 {[%emt 0:00:04]} 64. Qe8+ {[%emt 0:00:19]} Kd6 {[%emt 0:00:06]} 65. Qe5+ {[%emt 0:00:15]} Kd7 {[%emt 0:00:05]} 66. Kf7 {[%emt 0:00:06]} Kc6 {[%emt 0:00:07]} 67. Qd4 {[%emt 0:00:12]} Kc7 {[%emt 0:00:07]} 68. Qd5 {[%emt 0:00:23]} Kb6 {[%emt 0:00:03]} 69. Qc4 {[%emt 0:00:15]} Kb7 {[%emt 0:00:03]} 70. Qc5 {[%emt 0:00:26]} Ka6 {[%emt 0:00:16]} 71. Bd4 {[%emt 0:01:07]} Kb7 {[%emt 0:00:05]} 72. Ke7 {[%emt 0:00:22]} Kb8 {[%emt 0:00:06]} 73. Ba1 {[%emt 0:00:50]} Kb7 {[%emt 0:00:06]} 74. Kd7 {[%emt 0:00:05]} Ka8 {[%emt 0:00:15]} 75. Qb5 {[%emt 0:00:25]} Ka7 {[%emt 0:00:03]} 76. Bd4+ {[%emt 0:00:17]} Ka8 {[%emt 0:00:06]} 77. Qa6+ {[%emt 0:00:14]} Kb8 {[%emt 0:00:07]} 78. Qa7# {[%emt 0:00:09]} 1-0

[Event "FIDE WCCC G10 2018"]
[Site "Santiago de Compostela"]
[Date "2018.11.13"]
[Round "9"]
[White "Chen, Yining"]
[Black "Vu, My Linh"]
[Result "1-0"]
[ECO "E80"]
[WhiteElo "1457"]
[BlackElo "1349"]
[Annotator "NA RC"]
[PlyCount "119"]
[EventDate "2018.11.04"]
[EventType "swiss"]
[EventCountry "ESP"]
[SourceTitle "playchess.com"]
[Source "ChessBase"]
[SourceQuality "1"]
[TimeControl "40/5400+30:1800+30"]

1. d4 {[%emt 0:00:00]} Nf6 {[%emt 0:00:00]} 2. c4 {[%emt 0:00:00]} g6 {[%emt 0:00:00]} 3. Nc3 {[%emt 0:00:00]} Bg7 {[%emt 0:00:00]} 4. e4 {[%emt 0:00:00]} d6 {[%emt 0:00:00]} 5. f3 {[%emt 0:00:03]} a6 {[%emt 0:00:21]} 6. Be3 {[%emt 0:00:19]} Nc6 {[%emt 0:00:22]} 7. Nge2 {[%emt 0:00:38]} Bd7 {[%emt 0:00:49]} 8. Qd2 {[%emt 0:02:35]} Rb8 {[%emt 0:01:08]} 9. O-O-O {[%emt 0:07:33]} b5 {[%emt 0:03:10]} 10. Nd5 {[%emt 0:01:43]} b4 {[%emt 0:04:04]} 11. Bh6 {[%emt 0:04:41]} Bf8 {[%emt 0:06:22]} 12. h4 {[%emt 0:03:52]} e6 {[%emt 0:04:59]} 13. Nxf6+ {[%emt 0:04:15]} Qxf6 {[%emt 0:00:12]} 14. Bg5 {[%emt 0:06:02]} Qg7 {[%emt 0:01:26]} 15. e5 {[%emt 0:16:37]} Be7 {[%emt 0:03:50]} 16. exd6 {[%emt 0:02:44]} cxd6 {[%emt 0:01:06]} 17. d5 {[%emt 0:02:23]} Na5 {[%emt 0:06:20]} 18. Bxe7 {[%emt 0:07:56]} Kxe7 {[%emt 0:02:37]} 19. dxe6 {[%emt 0:03:12]} Nxc4 {[%emt 0:01:05]} 20. Qg5+ {[%emt 0:03:48]} f6 {[%emt 0:02:47]} 21. Qf4 {[%emt 0:03:45]} g5 {[%emt 0:02:34]} 22. hxg5 {[%emt 0:03:30]} fxg5 {[%emt 0:00:12]} 23. Qd4 {[%emt 0:00:14]} Qxd4 {[%emt 0:06:21]} 24. Nxd4 {[%emt 0:00:47]} Bb5 {[%emt 0:05:05]} 25. Bxc4 {[%emt 0:11:26]} Bxc4 {[%emt 0:02:13]} 26. Nc6+ {[%emt 0:00:29]} Kxe6 {[%emt 0:00:12]} 27. Nxb8 {[%emt 0:00:07]} Rxb8 {[%emt 0:00:06]} 28. b3 {[%emt 0:01:26]} Bb5 {[%emt 0:00:50]} 29. Rh6+ {[%emt 0:01:16]} Ke5 {[%emt 0:01:05]} 30. Rhxd6 {[%emt 0:00:49]} Rc8+ {[%emt 0:01:10]} 31. Kb2 {[%emt 0:00:33]} Kf4 {[%emt 0:00:31]} 32. R6d4+ {[%emt 0:00:17]} Kg3 {[%emt 0:00:34]} 33. Rg4+ {[%emt 0:00:17]} Kf2 {[%emt 0:00:36]} 34. Rxg5 {[%emt 0:00:40]} Rc3 {[%emt 0:01:36]} 35. Rc1 {[%emt 0:02:32]} Re3 {[%emt 0:00:36]} 36. Rc2+ {[%emt 0:00:27]} Ke1 {[%emt 0:00:22]} 37. f4 {[%emt 0:03:16]} Bd3 {[%emt 0:03:02]} 38. Re5 {[%emt 0:02:15]} Re4 {[%emt 0:04:56]} 39. Rxe4+ {[%emt 0:00:24]} Bxe4 {[%emt 0:00:07]} 40. Rc5 {[%emt 0:00:00]} Kd2 {[%emt 0:00:00]} 41. f5 {[%emt 0:01:57]} Kd3 {[%emt 0:01:39]} 42. f6 {[%emt 0:00:34]} Bg6 {[%emt 0:00:11]} 43. Rc7 {[%emt 0:00:16]} Ke4 {[%emt 0:00:25]} 44. f7 {[%emt 0:00:07]} Bxf7 {[%emt 0:00:08]} 45. Rxf7 {[%emt 0:00:01]} h5 {[%emt 0:00:18]} 46. Rh7 {[%emt 0:00:04]} Kf4 {[%emt 0:00:07]} 47. Rxh5 {[%emt 0:00:02]} Kg4 {[%emt 0:00:13]} 48. Ra5 {[%emt 0:00:04]} Kg3 {[%emt 0:00:09]} 49. Rxa6 {[%emt 0:00:03]} Kxg2 {[%emt 0:00:08]} 50. Rf6 {[%emt 0:00:04]} Kg3 {[%emt 0:00:10]} 51. a4 {[%emt 0:00:02]} bxa3+ {[%emt 0:00:10]} 52. Kxa3 {[%emt 0:00:02]} Kg4 {[%emt 0:00:07]} 53. b4 {[%emt 0:00:04]} Kg5 {[%emt 0:00:27]} 54. Rf1 {[%emt 0:00:04]} Kg6 {[%emt 0:00:07]} 55. b5 {[%emt 0:00:02]} Kg7 {[%emt 0:00:08]} 56. b6 {[%emt 0:00:04]} Kg8 {[%emt 0:00:29]} 57. b7 {[%emt 0:00:03]} Kg7 {[%emt 0:00:07]} 58. b8=Q {[%emt 0:00:03]} Kg6 {[%emt 0:00:09]} 59. Qg3+ {[%emt 0:00:06]} Kh6 {[%emt 0:00:04]} 60. Rh1# {[%emt 0:00:03]} 1-0

[Event "FIDE WCCC G10 2018"]
[Site "Santiago de Compostela"]
[Date "2018.11.13"]
[Round "9"]
[White "Yildiz, Elif Zeren"]
[Black "Shvedova, Alexandra"]
[Result "0-1"]
[ECO "C50"]
[WhiteElo "1448"]
[BlackElo "1782"]
[Annotator "NA RC"]
[PlyCount "62"]
[EventDate "2018.11.04"]
[EventType "swiss"]
[EventCountry "ESP"]
[SourceTitle "playchess.com"]
[Source "ChessBase"]
[SourceQuality "1"]
[TimeControl "40/5400+30:1800+30"]

1. e4 {[%emt 0:00:00]} e5 {[%emt 0:00:00]} 2. Nf3 {[%emt 0:00:00]} Nc6 {[%emt 0:00:00]} 3. Bc4 {[%emt 0:00:00]} Bc5 {[%emt 0:00:00]} 4. O-O {[%emt 0:00:00]} Nf6 {[%emt 0:00:00]} 5. d4 {[%emt 0:00:00]} Bxd4 {[%emt 0:00:04]} 6. Nxd4 {[%emt 0:00:09]} Nxd4 {[%emt 0:00:05]} 7. f4 {[%emt 0:00:12]} d6 {[%emt 0:00:04]} 8. fxe5 {[%emt 0:00:16]} dxe5 {[%emt 0:00:04]} 9. Bg5 {[%emt 0:00:12]} Qe7 {[%emt 0:00:44]} 10. Na3 {[%emt 0:00:31]} Be6 {[%emt 0:07:33]} 11. c3 {[%emt 0:04:01]} Bxc4 {[%emt 0:04:27]} 12. Nxc4 {[%emt 0:01:40]} Ne6 {[%emt 0:01:17]} 13. Bxf6 {[%emt 0:03:44]} Qc5+ {[%emt 0:02:39]} 14. Kh1 {[%emt 0:03:57]} Qxc4 {[%emt 0:05:23]} 15. Bxe5 {[%emt 0:01:57]} Qxe4 {[%emt 0:01:26]} 16. Bxc7 {[%emt 0:02:46]} O-O {[%emt 0:03:19]} 17. Re1 {[%emt 0:09:20]} Qc6 {[%emt 0:03:23]} 18. Bg3 {[%emt 0:02:04]} Rad8 {[%emt 0:01:50]} 19. Qe2 {[%emt 0:06:14]} Nc5 {[%emt 0:04:17]} 20. Rad1 {[%emt 0:13:15]} Ne4 {[%emt 0:08:54]} 21. Rxd8 {[%emt 0:08:32]} Nxg3+ {[%emt 0:00:10]} 22. hxg3 {[%emt 0:00:06]} Rxd8 {[%emt 0:00:09]} 23. Qe7 {[%emt 0:00:15]} Rf8 {[%emt 0:03:48]} 24. Rd1 {[%emt 0:04:00]} Re8 {[%emt 0:05:43]} 25. Rd8 {[%emt 0:05:13]} Qh6+ {[%emt 0:00:06]} 26. Kg1 {[%emt 0:01:14]} Qb6+ {[%emt 0:00:05]} 27. Kh2 {[%emt 0:01:11]} Rxd8 {[%emt 0:00:08]} 28. Qe2 {[%emt 0:00:28]} Qe6 {[%emt 0:00:44]} 29. Qc2 {[%emt 0:01:01]} Qh6+ {[%emt 0:00:42]} 30. Kg1 {[%emt 0:00:08]} Qe3+ {[%emt 0:00:06]} 31. Kh2 {[%emt 0:00:09]} Rd6 {[%emt 0:00:10]} 0-1